[Event "Late-Titled-Tuesday-Blitz-May-28-2024"]
[Site "Chess.com"]
[Date "2024.05.28"]
[Round "4"]
[White "tusplingher"]
[Black "ural58"]
[Result "1/2-1/2"]
[WhiteElo "2561"]
[BlackElo "2418"]
[TimeControl "180+1"]
[EndTime "14:38:10 PDT"]
[Termination "Game drawn by agreement"]

1. c4 {[%clk 0:03:00.9]} 1... e5 {[%clk 0:02:59]} 2. a3 {[%clk 0:03:00.6]} 2...
g6 {[%clk 0:02:54.6]} 3. d3 {[%clk 0:02:59.2]} 3... Bg7 {[%clk 0:02:54.4]} 4.
Nc3 {[%clk 0:02:59.4]} 4... b6 {[%clk 0:02:53.8]} 5. Nf3 {[%clk 0:02:57.1]} 5...
Bb7 {[%clk 0:02:53.6]} 6. g3 {[%clk 0:02:57]} 6... Ne7 {[%clk 0:02:50.4]} 7. Bg2
{[%clk 0:02:56.7]} 7... O-O {[%clk 0:02:50.5]} 8. O-O {[%clk 0:02:56.6]} 8... c5
{[%clk 0:02:48.9]} 9. Bd2 {[%clk 0:02:51.2]} 9... d6 {[%clk 0:02:48.5]} 10. b4
{[%clk 0:02:50.7]} 10... Nbc6 {[%clk 0:02:48]} 11. Rb1 {[%clk 0:02:50.3]} 11...
Nd4 {[%clk 0:02:47.8]} 12. Nxd4 {[%clk 0:02:48]} 12... Bxg2 {[%clk 0:02:47.4]}
13. Kxg2 {[%clk 0:02:46.1]} 13... exd4 {[%clk 0:02:45.1]} 14. Ne4 {[%clk
0:02:43]} 14... h6 {[%clk 0:02:41.5]} 15. f3 {[%clk 0:02:29.2]} 15... Nf5 {[%clk
0:02:39]} 16. Bf4 {[%clk 0:02:27.1]} 16... g5 {[%clk 0:02:37.1]} 17. Bd2 {[%clk
0:02:21.4]} 17... Re8 {[%clk 0:02:36.9]} 18. bxc5 {[%clk 0:02:18.8]} 18... dxc5
{[%clk 0:02:36.4]} 19. a4 {[%clk 0:02:16.1]} 19... a5 {[%clk 0:02:31.8]} 20. Qb3
{[%clk 0:02:13.8]} 20... Re6 {[%clk 0:02:31.4]} 21. Qb5 {[%clk 0:02:06.9]} 21...
Ne3+ {[%clk 0:02:22.6]} 22. Bxe3 {[%clk 0:02:05.3]} 22... dxe3 {[%clk
0:02:23.5]} 23. g4 {[%clk 0:02:03.6]} 23... Be5 {[%clk 0:02:13.1]} 24. Qb3
{[%clk 0:01:54.5]} 24... Qd4 {[%clk 0:02:07.8]} 25. Qc2 {[%clk 0:01:50.5]} 25...
Bc7 {[%clk 0:02:06.9]} 26. Qb2 {[%clk 0:01:43.5]} 26... Qxb2 {[%clk 0:02:00.3]}
27. Rxb2 {[%clk 0:01:42.3]} 27... Rf8 {[%clk 0:01:59.9]} 28. Ng3 {[%clk
0:01:33.3]} 28... Bxg3 {[%clk 0:01:54]} 29. hxg3 {[%clk 0:01:33.2]} 29... f5
{[%clk 0:01:54.6]} 30. gxf5 {[%clk 0:01:32.5]} 30... Rxf5 {[%clk 0:01:54.7]} 31.
Rfb1 {[%clk 0:01:29.4]} 31... Rff6 {[%clk 0:01:54.2]} 32. Rd1 {[%clk 0:01:27.5]}
32... Rd6 {[%clk 0:01:47.8]} 33. Rh1 {[%clk 0:01:25.1]} 33... Kg7 {[%clk
0:01:47]} 34. Rbb1 {[%clk 0:01:24.7]} 34... Rf5 {[%clk 0:01:40.6]} 35. Rb2
{[%clk 0:01:12.2]} 35... Rff6 {[%clk 0:01:39.8]} 36. Rhb1 {[%clk 0:01:10.8]}
36... h5 {[%clk 0:01:37.4]} 37. Rh1 {[%clk 0:01:10.2]} 37... Rh6 {[%clk
0:01:37.2]} 38. Rbb1 {[%clk 0:01:08.2]} 38... Rd8 {[%clk 0:01:37]} 39. Rbf1
{[%clk 0:01:04]} 39... Kf6 {[%clk 0:01:26.6]} 40. f4 {[%clk 0:01:00.8]} 40... g4
{[%clk 0:01:26.6]} 41. Rh4 {[%clk 0:00:58.6]} 41... Kf5 {[%clk 0:01:24.4]} 42.
Rfh1 {[%clk 0:00:54.5]} 42... Rdh8 {[%clk 0:01:23.9]} 43. Rb1 {[%clk 0:00:48.5]}
43... Rd8 {[%clk 0:01:20.5]} 44. Rbh1 {[%clk 0:00:47.3]} 44... Rdh8 {[%clk
0:01:19.6]} 45. Kh2 {[%clk 0:00:42.6]} 45... Rd8 {[%clk 0:01:14.2]} 46. Kg1
{[%clk 0:00:41.7]} 46... Kg6 {[%clk 0:01:11.4]} 47. Kg2 {[%clk 0:00:37.6]} 47...
Rd6 {[%clk 0:01:11.2]} 48. Rf1 {[%clk 0:00:30.1]} 48... Rf6 {[%clk 0:01:10.7]}
49. Rd1 {[%clk 0:00:27.8]} 49... Rd6 {[%clk 0:01:10.6]} 50. Rdh1 {[%clk
0:00:27.2]} 50... Rf6 {[%clk 0:01:10]} 51. Rb1 {[%clk 0:00:25.4]} 51... Rd6
{[%clk 0:01:09.7]} 52. Rd1 {[%clk 0:00:25.7]} 52... Kf5 {[%clk 0:01:08.7]} 53.
Rdh1 {[%clk 0:00:22.6]} 53... Kg6 {[%clk 0:01:08.8]} 1/2-1/2

[Event "Late-Titled-Tuesday-Blitz-May-28-2024"]
[Site "Chess.com"]
[Date "2024.05.28"]
[Round "4"]
[White "Oleksandr_Bortnyk"]
[Black "whiteshirt_boi"]
[Result "1-0"]
[WhiteElo "3025"]
[BlackElo "2798"]
[TimeControl "180+1"]
[EndTime "14:38:13 PDT"]
[Termination "Oleksandr_Bortnyk won by resignation"]

1. e4 {[%clk 0:02:57.6]} 1... e5 {[%clk 0:03:00.3]} 2. Nf3 {[%clk 0:02:17.1]}
2... Nc6 {[%clk 0:03:00]} 3. Bb5 {[%clk 0:02:15.1]} 3... a6 {[%clk 0:02:59.6]}
4. Ba4 {[%clk 0:02:10.9]} 4... d6 {[%clk 0:02:59.8]} 5. Nc3 {[%clk 0:02:07.6]}
5... Ne7 {[%clk 0:02:47.7]} 6. h3 {[%clk 0:02:02.3]} 6... Bd7 {[%clk 0:02:44.1]}
7. a3 {[%clk 0:02:01.4]} 7... g6 {[%clk 0:02:41.3]} 8. Bb3 {[%clk 0:02:00.1]}
8... Bg7 {[%clk 0:02:39.8]} 9. d3 {[%clk 0:02:00.1]} 9... O-O {[%clk 0:02:33.3]}
10. Bg5 {[%clk 0:01:59.2]} 10... h6 {[%clk 0:02:24.1]} 11. Be3 {[%clk
0:01:55.5]} 11... Kh7 {[%clk 0:02:17.1]} 12. Qd2 {[%clk 0:01:53.4]} 12... f5
{[%clk 0:02:15.8]} 13. exf5 {[%clk 0:01:43.1]} 13... gxf5 {[%clk 0:02:13.6]} 14.
g3 {[%clk 0:01:38]} 14... f4 {[%clk 0:02:05.2]} 15. gxf4 {[%clk 0:01:28.4]}
15... exf4 {[%clk 0:02:06.1]} 16. Bxf4 {[%clk 0:00:56.8]} 16... Ng6 {[%clk
0:02:06.1]} 17. Ng5+ {[%clk 0:00:56.9]} 17... hxg5 {[%clk 0:01:59.6]} 18. Bxg5
{[%clk 0:00:57.8]} 18... Qe8+ {[%clk 0:01:37.8]} 19. Be3 {[%clk 0:00:57.9]}
19... Nd4 {[%clk 0:01:34.7]} 20. O-O-O {[%clk 0:00:58.3]} 20... Bc6 {[%clk
0:01:21.3]} 21. Bxd4 {[%clk 0:00:56.8]} 21... Bxd4 {[%clk 0:01:15.3]} 22. Rhe1
{[%clk 0:00:57.1]} 22... Be5 {[%clk 0:01:12.9]} 23. Kb1 {[%clk 0:00:52]} 23...
Bf3 {[%clk 0:01:12.2]} 24. d4 {[%clk 0:00:50.1]} 24... Bxd1 {[%clk 0:00:52.8]}
25. Qxd1 {[%clk 0:00:51]} 25... Rf5 {[%clk 0:00:37.4]} 26. dxe5 {[%clk
0:00:49.8]} 26... Rxe5 {[%clk 0:00:38.3]} 27. Rg1 {[%clk 0:00:47.5]} 27... Qe7
{[%clk 0:00:33.6]} 28. Nd5 {[%clk 0:00:47.3]} 28... Qh4 {[%clk 0:00:32.2]} 29.
Nxc7 {[%clk 0:00:44.5]} 29... Rf8 {[%clk 0:00:31.5]} 30. Qxd6 {[%clk 0:00:38.4]}
30... Qf6 {[%clk 0:00:31.6]} 31. Ne6 {[%clk 0:00:29.6]} 31... Re8 {[%clk
0:00:23.3]} 32. Ng5+ {[%clk 0:00:20.3]} 32... Rxg5 {[%clk 0:00:23.8]} 33. Qxf6
{[%clk 0:00:19.9]} 33... Rxg1+ {[%clk 0:00:24.7]} 34. Ka2 {[%clk 0:00:20.3]}
34... Rf8 {[%clk 0:00:25.5]} 35. Qb6 {[%clk 0:00:18]} 35... Kh6 {[%clk
0:00:19.2]} 36. Bc4 {[%clk 0:00:16.2]} 36... Rxf2 {[%clk 0:00:18.8]} 37. Qxf2
{[%clk 0:00:15.9]} 1-0

[Event "Late-Titled-Tuesday-Blitz-May-28-2024"]
[Site "Chess.com"]
[Date "2024.05.28"]
[Round "4"]
[White "lamomiablanca"]
[Black "Veleamater"]
[Result "0-1"]
[WhiteElo "2634"]
[BlackElo "2461"]
[TimeControl "180+1"]
[EndTime "14:38:21 PDT"]
[Termination "Veleamater won on time"]

1. e4 {[%clk 0:02:59.6]} 1... d6 {[%clk 0:03:00.6]} 2. d4 {[%clk 0:02:58.4]}
2... g6 {[%clk 0:03:01]} 3. Nc3 {[%clk 0:02:58.3]} 3... Bg7 {[%clk 0:03:01.5]}
4. f4 {[%clk 0:02:57.7]} 4... Nf6 {[%clk 0:03:01.1]} 5. Nf3 {[%clk 0:02:57.2]}
5... O-O {[%clk 0:03:01.7]} 6. Bd3 {[%clk 0:02:57]} 6... Nc6 {[%clk 0:03:02.2]}
7. e5 {[%clk 0:02:47.4]} 7... Nd7 {[%clk 0:02:58.9]} 8. Ne4 {[%clk 0:02:43.8]}
8... Nxd4 {[%clk 0:02:58.4]} 9. Nxd4 {[%clk 0:02:42.2]} 9... dxe5 {[%clk
0:02:58.6]} 10. fxe5 {[%clk 0:02:40.7]} 10... Nxe5 {[%clk 0:02:58.6]} 11. Nf3
{[%clk 0:02:40.6]} 11... Bg4 {[%clk 0:02:57.7]} 12. O-O {[%clk 0:02:37.8]} 12...
c6 {[%clk 0:02:30.1]} 13. Kh1 {[%clk 0:02:35]} 13... Nxf3 {[%clk 0:02:24]} 14.
gxf3 {[%clk 0:02:34.8]} 14... Bh3 {[%clk 0:02:24]} 15. Re1 {[%clk 0:02:33.9]}
15... h6 {[%clk 0:02:23.7]} 16. Qe2 {[%clk 0:02:31.5]} 16... e5 {[%clk
0:02:15.7]} 17. Nf2 {[%clk 0:02:27.2]} 17... Be6 {[%clk 0:02:14.6]} 18. Bd2
{[%clk 0:02:24]} 18... f5 {[%clk 0:02:07.1]} 19. Bc3 {[%clk 0:02:23.4]} 19...
Bd5 {[%clk 0:02:05.5]} 20. Bc4 {[%clk 0:02:21.6]} 20... Re8 {[%clk 0:02:01.4]}
21. Bxd5+ {[%clk 0:02:20.8]} 21... cxd5 {[%clk 0:02:00.5]} 22. Rad1 {[%clk
0:02:20.1]} 22... d4 {[%clk 0:02:00.5]} 23. Bd2 {[%clk 0:02:11.9]} 23... Qb6
{[%clk 0:01:59]} 24. Rg1 {[%clk 0:02:09.8]} 24... Rac8 {[%clk 0:01:56.6]} 25. c3
{[%clk 0:02:06.5]} 25... Kh7 {[%clk 0:01:52.4]} 26. cxd4 {[%clk 0:02:00.6]}
26... Rc2 {[%clk 0:01:39.7]} 27. Qd3 {[%clk 0:01:54.4]} 27... Qxb2 {[%clk
0:01:37]} 28. Qb3 {[%clk 0:01:24.6]} 28... Qxb3 {[%clk 0:01:35.4]} 29. axb3
{[%clk 0:01:23.9]} 29... exd4 {[%clk 0:01:35.4]} 30. Rge1 {[%clk 0:01:16.5]}
30... Rxe1+ {[%clk 0:01:33]} 31. Bxe1 {[%clk 0:01:15.4]} 31... Re2 {[%clk
0:01:29.9]} 32. Nd3 {[%clk 0:01:14.3]} 32... g5 {[%clk 0:01:25]} 33. Bf2 {[%clk
0:01:13.6]} 33... Kg6 {[%clk 0:01:16.9]} 34. Kg2 {[%clk 0:01:12.6]} 34... Ra2
{[%clk 0:01:01.4]} 35. Kf1 {[%clk 0:01:08.1]} 35... Ra3 {[%clk 0:01:00.8]} 36.
b4 {[%clk 0:01:08.1]} 36... b6 {[%clk 0:01:00.1]} 37. b5 {[%clk 0:01:07.1]}
37... Rb3 {[%clk 0:00:59.3]} 38. Ke2 {[%clk 0:00:58.2]} 38... Rxb5 {[%clk
0:00:59.3]} 39. Rc1 {[%clk 0:00:58.3]} 39... Kh5 {[%clk 0:00:50.3]} 40. Rc7
{[%clk 0:00:57.2]} 40... Be5 {[%clk 0:00:49.5]} 41. h4 {[%clk 0:00:53.6]} 41...
Bxc7 {[%clk 0:00:48.8]} 0-1

[Event "Late-Titled-Tuesday-Blitz-May-28-2024"]
[Site "Chess.com"]
[Date "2024.05.28"]
[Round "4"]
[White "Cuchulin"]
[Black "szachmistrz2500"]
[Result "0-1"]
[WhiteElo "2222"]
[BlackElo "2507"]
[TimeControl "180+1"]
[EndTime "14:38:21 PDT"]
[Termination "szachmistrz2500 won on time"]

1. d4 {[%clk 0:02:59.1]} 1... d5 {[%clk 0:02:58.4]} 2. Bf4 {[%clk 0:02:59.2]}
2... Nf6 {[%clk 0:02:54.6]} 3. e3 {[%clk 0:02:59.4]} 3... Bf5 {[%clk 0:02:50.8]}
4. Bd3 {[%clk 0:02:58.3]} 4... Bxd3 {[%clk 0:02:47.9]} 5. Qxd3 {[%clk
0:02:59.2]} 5... c6 {[%clk 0:02:48]} 6. Nf3 {[%clk 0:02:58.3]} 6... Qb6 {[%clk
0:02:48]} 7. b3 {[%clk 0:02:57.8]} 7... Nbd7 {[%clk 0:02:47.1]} 8. Nbd2 {[%clk
0:02:55.9]} 8... e6 {[%clk 0:02:46.7]} 9. h3 {[%clk 0:02:54.9]} 9... c5 {[%clk
0:02:46.9]} 10. c4 {[%clk 0:02:52.3]} 10... Be7 {[%clk 0:02:44.2]} 11. O-O
{[%clk 0:02:51.7]} 11... O-O {[%clk 0:02:42.9]} 12. Rfc1 {[%clk 0:02:44.8]}
12... Rac8 {[%clk 0:02:41.8]} 13. Ne5 {[%clk 0:02:38.7]} 13... cxd4 {[%clk
0:02:37.1]} 14. exd4 {[%clk 0:02:35.6]} 14... Rfd8 {[%clk 0:02:32.1]} 15. c5
{[%clk 0:02:34.5]} 15... Qa5 {[%clk 0:02:28.2]} 16. a3 {[%clk 0:02:31.9]} 16...
Nxe5 {[%clk 0:02:26]} 17. Bxe5 {[%clk 0:02:30.7]} 17... Nd7 {[%clk 0:02:21.5]}
18. Bg3 {[%clk 0:02:19.4]} 18... Bf6 {[%clk 0:02:19.3]} 19. b4 {[%clk
0:02:18.6]} 19... Qa4 {[%clk 0:02:18.8]} 20. Nf3 {[%clk 0:02:13.4]} 20... h6
{[%clk 0:02:16.3]} 21. Rab1 {[%clk 0:02:00]} 21... Re8 {[%clk 0:01:53.5]} 22.
Re1 {[%clk 0:01:47.2]} 22... a6 {[%clk 0:01:47.9]} 23. b5 {[%clk 0:01:32.6]}
23... e5 {[%clk 0:01:26.7]} 24. dxe5 {[%clk 0:01:00.6]} 24... Nxc5 {[%clk
0:01:25.2]} 25. Qxd5 {[%clk 0:01:00.7]} 25... Be7 {[%clk 0:01:19.9]} 26. bxa6
{[%clk 0:00:56.6]} 26... bxa6 {[%clk 0:01:18.3]} 27. Rb4 {[%clk 0:00:29.6]}
27... Qxa3 {[%clk 0:01:15.3]} 28. Rf4 {[%clk 0:00:26.4]} 28... Ne6 {[%clk
0:01:12.4]} 29. Rg4 {[%clk 0:00:14.9]} 29... Red8 {[%clk 0:00:58]} 30. Qe4
{[%clk 0:00:10.8]} 30... Qd3 {[%clk 0:00:58]} 31. Qxd3 {[%clk 0:00:07.3]} 31...
Rxd3 {[%clk 0:00:57.2]} 32. Ra4 {[%clk 0:00:07.7]} 32... a5 {[%clk 0:00:55.5]}
33. Rea1 {[%clk 0:00:05]} 33... Bb4 {[%clk 0:00:55.5]} 34. Ne1 {[%clk
0:00:03.9]} 34... Rd2 {[%clk 0:00:54.8]} 35. Nf3 {[%clk 0:00:03.6]} 35... Rb2
{[%clk 0:00:53.8]} 36. Nh4 {[%clk 0:00:01.6]} 36... g6 {[%clk 0:00:49.5]} 37.
Nf3 {[%clk 0:00:01.3]} 37... Rd8 {[%clk 0:00:48.6]} 38. Ne1 {[%clk 0:00:01.1]}
38... Nd4 {[%clk 0:00:43.6]} 39. Nd3 {[%clk 0:00:01]} 39... Ne2+ {[%clk
0:00:43.8]} 40. Kf1 {[%clk 0:00:00.8]} 40... Nxg3+ {[%clk 0:00:43.6]} 0-1

[Event "Late-Titled-Tuesday-Blitz-May-28-2024"]
[Site "Chess.com"]
[Date "2024.05.28"]
[Round "4"]
[White "JacksterThePro"]
[Black "WoodlandMagic"]
[Result "0-1"]
[WhiteElo "2557"]
[BlackElo "2840"]
[TimeControl "180+1"]
[EndTime "14:38:25 PDT"]
[Termination "WoodlandMagic won on time"]

1. d4 {[%clk 0:03:00.9]} 1... Nf6 {[%clk 0:02:55.9]} 2. Bg5 {[%clk 0:02:59.8]}
2... Ne4 {[%clk 0:02:53.8]} 3. Bh4 {[%clk 0:02:59.9]} 3... d5 {[%clk 0:02:45.9]}
4. f3 {[%clk 0:02:46.4]} 4... Nd6 {[%clk 0:02:44.2]} 5. Nd2 {[%clk 0:02:45.6]}
5... g6 {[%clk 0:02:37.2]} 6. e4 {[%clk 0:02:41.2]} 6... Bh6 {[%clk 0:02:31.1]}
7. Bd3 {[%clk 0:02:35.4]} 7... O-O {[%clk 0:01:59.8]} 8. Ne2 {[%clk 0:02:00.7]}
8... dxe4 {[%clk 0:01:52.3]} 9. fxe4 {[%clk 0:01:58.1]} 9... Qe8 {[%clk
0:01:46.7]} 10. e5 {[%clk 0:01:43.1]} 10... Nf5 {[%clk 0:01:43.2]} 11. Bxf5
{[%clk 0:01:34.1]} 11... Bxf5 {[%clk 0:01:42.6]} 12. O-O {[%clk 0:01:32.1]}
12... Nc6 {[%clk 0:01:41]} 13. Bf2 {[%clk 0:01:32]} 13... Nb4 {[%clk 0:01:38.6]}
14. Ng3 {[%clk 0:01:13.9]} 14... Bxc2 {[%clk 0:01:36.3]} 15. Qf3 {[%clk
0:01:13.8]} 15... Qc6 {[%clk 0:01:26.5]} 16. Nde4 {[%clk 0:00:45.9]} 16... Rad8
{[%clk 0:01:06.9]} 17. Nc5 {[%clk 0:00:32.7]} 17... Qxf3 {[%clk 0:01:05.6]} 18.
gxf3 {[%clk 0:00:33.6]} 18... b6 {[%clk 0:01:05.2]} 19. a3 {[%clk 0:00:30.9]}
19... Nd5 {[%clk 0:00:59.1]} 20. Nce4 {[%clk 0:00:26]} 20... f5 {[%clk
0:00:58.5]} 21. exf6 {[%clk 0:00:24.3]} 21... exf6 {[%clk 0:00:58.7]} 22. Rfe1
{[%clk 0:00:20.8]} 22... Nf4 {[%clk 0:00:57.3]} 23. Be3 {[%clk 0:00:09.6]} 23...
f5 {[%clk 0:00:52.3]} 24. Nc3 {[%clk 0:00:08]} 24... Nh3+ {[%clk 0:00:50.5]} 25.
Kg2 {[%clk 0:00:07.8]} 25... f4 {[%clk 0:00:49.7]} 26. Kxh3 {[%clk 0:00:06.4]}
26... fxe3 {[%clk 0:00:49.3]} 27. d5 {[%clk 0:00:04.1]} 27... Rxf3 {[%clk
0:00:48.1]} 28. Re2 {[%clk 0:00:04]} 28... Bd3 {[%clk 0:00:46.7]} 29. Ree1
{[%clk 0:00:02]} 29... Bg7 {[%clk 0:00:44.2]} 30. Kg2 {[%clk 0:00:01]} 30...
Rf2+ {[%clk 0:00:43.9]} 31. Kg1 {[%clk 0:00:01.2]} 31... Bd4 {[%clk 0:00:42.4]}
32. Nf1 {[%clk 0:00:01.1]} 32... e2 {[%clk 0:00:41.1]} 33. Ng3 {[%clk
0:00:01.7]} 33... Rdf8 {[%clk 0:00:33.4]} 34. Kh1 {[%clk 0:00:02.1]} 34... Bxc3
{[%clk 0:00:27.7]} 35. bxc3 {[%clk 0:00:02]} 35... h5 {[%clk 0:00:28.2]} 36. h4
{[%clk 0:00:01.3]} 36... R8f3 {[%clk 0:00:27.4]} 0-1

[Event "Late-Titled-Tuesday-Blitz-May-28-2024"]
[Site "Chess.com"]
[Date "2024.05.28"]
[Round "4"]
[White "shirovin"]
[Black "Abduzhaparov"]
[Result "0-1"]
[WhiteElo "2097"]
[BlackElo "2463"]
[TimeControl "180+1"]
[EndTime "14:38:28 PDT"]
[Termination "Abduzhaparov won on time"]

1. e4 {[%clk 0:03:00.9]} 1... d6 {[%clk 0:03:00.9]} 2. d4 {[%clk 0:03:00]} 2...
Nf6 {[%clk 0:03:01.8]} 3. Nc3 {[%clk 0:02:59.8]} 3... e5 {[%clk 0:03:02.7]} 4.
Nf3 {[%clk 0:02:52.5]} 4... exd4 {[%clk 0:03:02.3]} 5. Nxd4 {[%clk 0:02:44.1]}
5... Be7 {[%clk 0:03:03.2]} 6. f3 {[%clk 0:02:40.2]} 6... O-O {[%clk 0:03:04.1]}
7. Be3 {[%clk 0:02:39.3]} 7... Re8 {[%clk 0:03:04.3]} 8. Qd2 {[%clk 0:02:36.3]}
8... d5 {[%clk 0:03:04.6]} 9. e5 {[%clk 0:02:28.8]} 9... Nfd7 {[%clk 0:03:04.3]}
10. Nxd5 {[%clk 0:02:14.8]} 10... Bh4+ {[%clk 0:03:03.9]} 11. g3 {[%clk
0:02:04.4]} 11... Nxe5 {[%clk 0:03:04]} 12. c4 {[%clk 0:01:27.3]} 12... c6
{[%clk 0:02:45.4]} 13. gxh4 {[%clk 0:01:19.4]} 13... cxd5 {[%clk 0:02:44.8]} 14.
O-O-O {[%clk 0:01:18.6]} 14... Nbc6 {[%clk 0:02:20.2]} 15. Nxc6 {[%clk
0:01:10.6]} 15... bxc6 {[%clk 0:02:19.7]} 16. Be2 {[%clk 0:01:04.9]} 16... Bf5
{[%clk 0:02:17.2]} 17. b3 {[%clk 0:00:52.3]} 17... Qe7 {[%clk 0:02:06.3]} 18.
Bd4 {[%clk 0:00:42.6]} 18... c5 {[%clk 0:01:42]} 19. Bb2 {[%clk 0:00:40.6]}
19... dxc4 {[%clk 0:01:41.9]} 20. Bxc4 {[%clk 0:00:35.7]} 20... Nxc4 {[%clk
0:01:27.3]} 21. bxc4 {[%clk 0:00:34.2]} 21... Qxh4 {[%clk 0:01:23.6]} 22. Rhg1
{[%clk 0:00:29.1]} 22... Qxc4+ {[%clk 0:01:09.4]} 23. Bc3 {[%clk 0:00:19.6]}
23... g6 {[%clk 0:01:05.8]} 24. Kb2 {[%clk 0:00:16.9]} 24... Rab8+ {[%clk
0:01:03.7]} 25. Ka1 {[%clk 0:00:16]} 25... Rbd8 {[%clk 0:00:59.7]} 26. Qb2
{[%clk 0:00:14.3]} 26... Rb8 {[%clk 0:00:36.9]} 27. Qd2 {[%clk 0:00:12.5]} 27...
Be6 {[%clk 0:00:25.9]} 28. Rb1 {[%clk 0:00:11.3]} 28... Qd5 {[%clk 0:00:23.4]}
29. Qc2 {[%clk 0:00:10.1]} 29... Qc4 {[%clk 0:00:20.5]} 30. Rxb8 {[%clk
0:00:07.9]} 30... Rxb8 {[%clk 0:00:21.4]} 31. Qd2 {[%clk 0:00:05.4]} 31... Re8
{[%clk 0:00:18.6]} 32. Re1 {[%clk 0:00:04]} 32... h5 {[%clk 0:00:18]} 33. Re2
{[%clk 0:00:01]} 33... Kh7 {[%clk 0:00:17.4]} 0-1

[Event "Late-Titled-Tuesday-Blitz-May-28-2024"]
[Site "Chess.com"]
[Date "2024.05.28"]
[Round "4"]
[White "CheckBits"]
[Black "Nathan_Filgueiras"]
[Result "1-0"]
[WhiteElo "2398"]
[BlackElo "2548"]
[TimeControl "180+1"]
[EndTime "14:38:32 PDT"]
[Termination "CheckBits won by checkmate"]

1. e4 {[%clk 0:03:00.9]} 1... c5 {[%clk 0:02:58.2]} 2. c3 {[%clk 0:03:00.4]}
2... Nf6 {[%clk 0:02:57.9]} 3. e5 {[%clk 0:03:00.7]} 3... Nd5 {[%clk 0:02:58.6]}
4. Nf3 {[%clk 0:03:00.6]} 4... Nc6 {[%clk 0:02:58.8]} 5. Bc4 {[%clk 0:03:00.8]}
5... Nb6 {[%clk 0:02:58.5]} 6. Bb3 {[%clk 0:02:59.9]} 6... d5 {[%clk 0:02:58.8]}
7. exd6 {[%clk 0:02:54.4]} 7... c4 {[%clk 0:02:59.1]} 8. Bc2 {[%clk 0:02:49.6]}
8... Qxd6 {[%clk 0:02:59.6]} 9. O-O {[%clk 0:02:46.6]} 9... Bg4 {[%clk
0:03:00.2]} 10. Re1 {[%clk 0:02:42.4]} 10... O-O-O {[%clk 0:03:00.4]} 11. h3
{[%clk 0:02:34.9]} 11... Bh5 {[%clk 0:02:57.8]} 12. a4 {[%clk 0:02:34.3]} 12...
Qf6 {[%clk 0:02:51.7]} 13. a5 {[%clk 0:02:30.5]} 13... Bxf3 {[%clk 0:02:51]} 14.
Qxf3 {[%clk 0:02:26.5]} 14... Qxf3 {[%clk 0:02:50.8]} 15. gxf3 {[%clk
0:02:26.8]} 15... Nd5 {[%clk 0:02:36.9]} 16. a6 {[%clk 0:02:00.2]} 16... Nf4
{[%clk 0:02:26.7]} 17. axb7+ {[%clk 0:01:58.9]} 17... Kxb7 {[%clk 0:02:26.6]}
18. Na3 {[%clk 0:01:50.7]} 18... Nd3 {[%clk 0:02:15.9]} 19. Re4 {[%clk
0:01:44.3]} 19... Nxc1 {[%clk 0:02:02.1]} 20. Rxc1 {[%clk 0:01:43.5]} 20... Rxd2
{[%clk 0:02:02.2]} 21. Rxc4 {[%clk 0:01:42.7]} 21... Ne5 {[%clk 0:01:25.4]} 22.
Be4+ {[%clk 0:01:37.5]} 22... Kb8 {[%clk 0:01:23.9]} 23. Rb4+ {[%clk 0:01:33.9]}
23... Kc8 {[%clk 0:01:24.3]} 24. Nc4 {[%clk 0:01:13.9]} 24... Nxc4 {[%clk
0:01:14.9]} 25. Rxc4+ {[%clk 0:01:13.6]} 25... Kd8 {[%clk 0:01:12.6]} 26. Ra1
{[%clk 0:00:54.5]} 26... Rd7 {[%clk 0:01:00.1]} 27. Rca4 {[%clk 0:00:50.6]}
27... g6 {[%clk 0:00:33.1]} 28. Rxa7 {[%clk 0:00:49.4]} 28... Rxa7 {[%clk
0:00:34]} 29. Rxa7 {[%clk 0:00:48.6]} 29... Bg7 {[%clk 0:00:34.6]} 30. Bc6
{[%clk 0:00:29.6]} 30... Bf6 {[%clk 0:00:32]} 31. Kf1 {[%clk 0:00:26.1]} 31...
h5 {[%clk 0:00:31]} 32. Ke2 {[%clk 0:00:25.7]} 32... h4 {[%clk 0:00:31.5]} 33.
Kd3 {[%clk 0:00:22.7]} 33... Rh5 {[%clk 0:00:31.6]} 34. b4 {[%clk 0:00:22.6]}
34... Re5 {[%clk 0:00:25.1]} 35. c4 {[%clk 0:00:20.6]} 35... Re1 {[%clk
0:00:24.8]} 36. c5 {[%clk 0:00:20.7]} 36... Kc8 {[%clk 0:00:19.9]} 37. b5 {[%clk
0:00:14.6]} 37... Rd1+ {[%clk 0:00:20.4]} 38. Kc2 {[%clk 0:00:13.5]} 38... Rd4
{[%clk 0:00:16.5]} 39. b6 {[%clk 0:00:12.9]} 39... Rc4+ {[%clk 0:00:15.6]} 40.
Kb3 {[%clk 0:00:13.1]} 40... Rxc5 {[%clk 0:00:15.7]} 41. Ra8# {[%clk 0:00:12.8]}
1-0